{"text_format":"2","workbook":"xlsx","n_sheets":2,"sheets":["By Grade (Same as current)","By Salary Point"],"not_rendered":{"charts":0,"images":0,"macros":0,"external_links":0,"defined_names":0,"comments":0,"pivot_tables":0},"unopened":[],"bounds":{"document_bytes":16777216,"sheet_cells":100000,"run_cost":"one","rows_first":2000,"rows_last":500,"rows_between":2000,"halvings":0,"cell_chars":16384,"cell_head_chars":4096},"cells_cut":0,"cells_raw":0,"read":"whole","date_system":"1900"}

{"sheet":"By Grade (Same as current)","index":0,"n_rows":2,"n_cols":1,"rows_kept":2,"cut":false,"hidden":false,"merged":[]}
["Cross Team Charge Report by Grade"]
["Reporting Month:"]

{"sheet":"By Salary Point","index":1,"n_rows":42,"n_cols":8,"rows_kept":42,"cut":false,"hidden":false,"merged":[[27,1,27,7],[19,1,19,7],[11,1,11,7],[3,1,3,7],[35,1,35,7]]}
["Cross Team Charge Report by Grade"]
["Reporting Month:",null,"June 2024"]
[]
["Team to be charged:","TW"]
[null,"Grade 1","Grade 2","Grade 3","Grade 4","Grade 5","Total Manhour by Team","Total Cost Adjusted by Salary Point by Team"]
["WY",3,5,5,0,0,{"$f":"SUM(B6:F6)","v":13}]
["MN",2,2,1,0,0,{"$f":"SUM(B7:F7)","v":5}]
["MC",3,0,0,0,0,3]
["CH",2,3,0,0,0,5]
["Total Manhour by Grade",{"$f":"SUM(B6:B9)","v":10},{"$f":"SUM(C6:C9)","v":10},6,0,0]
[]
["Team to be charged:","WY"]
[null,"Grade 1","Grade 2","Grade 3","Grade 4","Grade 5","Total Manhour by Team","Total Cost Adjusted by Salary Point by Team"]
["TW",null,null,null,1,0,{"$f":"SUM(B14:F14)","v":1}]
["MN",null,null,null,1,0,{"$f":"SUM(B15:F15)","v":1}]
["MC",null,null,1,0,0,1]
["CH",null,null,1,0,0,1]
["Total Manhour by Grade",{"$f":"SUM(B14:B17)","v":0},{"$f":"SUM(C14:C17)","v":0},2,2,0]
[]
["Team to be charged:","MN"]
[null,"Grade 1","Grade 2","Grade 3","Grade 4","Grade 5","Total Manhour by Team","Total Cost Adjusted by Salary Point by Team"]
["WY",2,1,0,0,0,{"$f":"SUM(B22:F22)","v":3}]
["TW",0,1,0,0,0,{"$f":"SUM(B23:F23)","v":1}]
["MC",0,0,0,0,0,0]
["CH",0,1,0,0,0,1]
["Total Manhour by Grade",{"$f":"SUM(B22:B25)","v":2},{"$f":"SUM(C22:C25)","v":3},0,0,0]
[]
["Team to be charged:","MC"]
[null,"Grade 1","Grade 2","Grade 3","Grade 4","Grade 5","Total Manhour by Team","Total Cost Adjusted by Salary Point by Team"]
["WY",0,0,0,0,0,{"$f":"SUM(B30:F30)","v":0}]
["MN",0,0,0,0,0,{"$f":"SUM(B31:F31)","v":0}]
["TW",0,0,0,0,0,0]
["CH",0,0,0,0,0,0]
["Total Manhour by Grade",{"$f":"SUM(B30:B33)","v":0},{"$f":"SUM(C30:C33)","v":0},0,0,0]
[]
["Team to be charged:","CH"]
[null,"Grade 1","Grade 2","Grade 3","Grade 4","Grade 5","Total Manhour by Team","Total Cost Adjusted by Salary Point by Team"]
["WY",0,0,0,0,1,{"$f":"SUM(B38:F38)","v":1}]
["MN",0,0,0,0,0,{"$f":"SUM(B39:F39)","v":0}]
["MC",0,0,0,0,1,1]
["TW",0,0,0,0,0,0]
["Total Manhour by Grade",{"$f":"SUM(B38:B41)","v":0},{"$f":"SUM(C38:C41)","v":0},0,0,2]